[Event "Early-Titled-Tuesday-Blitz-December-26-2023"]
[Site "Chess.com"]
[Date "2023.12.26"]
[Round "5"]
[White "Chempiblinka"]
[Black "Journey_to_GrandMaster_YT"]
[Result "1-0"]
[WhiteElo "2278"]
[BlackElo "2527"]
[TimeControl "180+1"]
[EndTime "8:58:24 PST"]
[Termination "Chempiblinka won by resignation"]

1. Nf3 {[%clk 0:02:59.3]} 1... d6 {[%clk 0:02:44.9]} 2. g3 {[%clk 0:02:57.8]}
2... Nf6 {[%clk 0:02:44.7]} 3. Bg2 {[%clk 0:02:58.7]} 3... Nbd7 {[%clk
0:02:44.6]} 4. O-O {[%clk 0:02:59.2]} 4... e5 {[%clk 0:02:45.3]} 5. d3 {[%clk
0:02:57.8]} 5... Be7 {[%clk 0:02:45.5]} 6. c4 {[%clk 0:02:58.4]} 6... O-O {[%clk
0:02:42]} 7. Nc3 {[%clk 0:02:58.9]} 7... c6 {[%clk 0:02:42.3]} 8. b4 {[%clk
0:02:57.4]} 8... d5 {[%clk 0:02:41.2]} 9. cxd5 {[%clk 0:02:51.5]} 9... cxd5
{[%clk 0:02:42.1]} 10. a3 {[%clk 0:02:42.5]} 10... d4 {[%clk 0:02:37.6]} 11. Nb1
{[%clk 0:02:31.5]} 11... a5 {[%clk 0:02:37]} 12. Bb2 {[%clk 0:02:00.4]} 12...
axb4 {[%clk 0:02:33.4]} 13. axb4 {[%clk 0:02:01.3]} 13... Rxa1 {[%clk
0:02:33.2]} 14. Bxa1 {[%clk 0:02:01.2]} 14... Bxb4 {[%clk 0:02:33.6]} 15. Nbd2
{[%clk 0:02:01.6]} 15... Re8 {[%clk 0:02:26.6]} 16. Qb3 {[%clk 0:01:56.8]} 16...
Bf8 {[%clk 0:01:59.1]} 17. Nc4 {[%clk 0:01:48.4]} 17... Nc5 {[%clk 0:01:24.4]}
18. Qb2 {[%clk 0:01:47.4]} 18... Nfd7 {[%clk 0:01:15.3]} 19. Nfd2 {[%clk
0:01:44.8]} 19... Kh8 {[%clk 0:00:52.6]} 20. Qb5 {[%clk 0:01:44.8]} 20... f5
{[%clk 0:00:48.9]} 21. Rc1 {[%clk 0:01:36.9]} 21... Qf6 {[%clk 0:00:46.6]} 22.
Na5 {[%clk 0:00:49.5]} 22... Qa6 {[%clk 0:00:32.7]} 23. Qxa6 {[%clk 0:00:19]}
23... bxa6 {[%clk 0:00:33.6]} 24. Ndc4 {[%clk 0:00:19]} 24... h5 {[%clk
0:00:22.6]} 25. h4 {[%clk 0:00:18.8]} 25... Nf6 {[%clk 0:00:19.6]} 26. Bh3
{[%clk 0:00:19]} 26... Bd7 {[%clk 0:00:18.2]} 27. Bg2 {[%clk 0:00:19.1]} 27...
Rb8 {[%clk 0:00:16.4]} 28. Nc6 {[%clk 0:00:15.9]} 28... Bxc6 {[%clk 0:00:15.5]}
29. Bxc6 {[%clk 0:00:16.8]} 29... Nb3 {[%clk 0:00:15.4]} 30. Rb1 {[%clk
0:00:16.2]} 30... Rb4 {[%clk 0:00:10.7]} 31. Bb2 {[%clk 0:00:16.3]} 31... Nc5
{[%clk 0:00:09]} 32. Ra1 {[%clk 0:00:15.5]} 32... Be7 {[%clk 0:00:08.6]} 33. Kg2
{[%clk 0:00:14.8]} 33... Rb8 {[%clk 0:00:07.7]} 34. Ba3 {[%clk 0:00:14.8]} 34...
Rc8 {[%clk 0:00:07.7]} 35. Nxe5 {[%clk 0:00:14.4]} 35... Bd6 {[%clk 0:00:06.5]}
36. Nf7+ {[%clk 0:00:04.3]} 36... Kh7 {[%clk 0:00:06.8]} 37. Nxd6 {[%clk
0:00:05.2]} 37... Rxc6 {[%clk 0:00:07.2]} 38. Nc4 {[%clk 0:00:04.6]} 38... Nfd7
{[%clk 0:00:05.6]} 39. Rb1 {[%clk 0:00:04.9]} 39... Kg6 {[%clk 0:00:04.8]} 40.
Bb4 {[%clk 0:00:04.2]} 40... Kh7 {[%clk 0:00:04.6]} 41. Ba3 {[%clk 0:00:04.8]}
41... Rc8 {[%clk 0:00:05]} 42. Bb2 {[%clk 0:00:05.3]} 42... Rb8 {[%clk
0:00:05.2]} 43. Ra1 {[%clk 0:00:05.9]} 43... Rb3 {[%clk 0:00:04.6]} 44. Bxd4
{[%clk 0:00:05.2]} 44... Rb5 {[%clk 0:00:03.7]} 45. Be3 {[%clk 0:00:05.3]} 45...
Nb3 {[%clk 0:00:03.6]} 46. Rxa6 {[%clk 0:00:05.4]} 46... Nbc5 {[%clk 0:00:03.9]}
47. Ra7 {[%clk 0:00:05.8]} 47... Rb7 {[%clk 0:00:03.7]} 48. Ra8 {[%clk
0:00:05.8]} 48... Rb3 {[%clk 0:00:03.2]} 49. Rd8 {[%clk 0:00:05.3]} 49... Rb1
{[%clk 0:00:03.2]} 50. Bxc5 {[%clk 0:00:05.1]} 50... Nxc5 {[%clk 0:00:03.1]} 51.
Rf8 {[%clk 0:00:05.7]} 51... Nb3 {[%clk 0:00:03.4]} 52. Rxf5 {[%clk 0:00:05.7]}
52... Nc1 {[%clk 0:00:03.7]} 53. Kf3 {[%clk 0:00:06]} 53... Ra1 {[%clk
0:00:03.9]} 54. Re5 {[%clk 0:00:06.6]} 54... Ra2 {[%clk 0:00:04.4]} 55. Nd6
{[%clk 0:00:06.6]} 55... Nb3 {[%clk 0:00:04.9]} 56. Nf5 {[%clk 0:00:06.6]} 56...
Kg6 {[%clk 0:00:05.1]} 57. Kf4 {[%clk 0:00:06.8]} 57... Kf6 {[%clk 0:00:05.5]}
58. Rb5 {[%clk 0:00:06.1]} 58... Nc1 {[%clk 0:00:05.1]} 59. Rb6+ {[%clk
0:00:06.6]} 59... Kf7 {[%clk 0:00:05.1]} 60. e3 {[%clk 0:00:07.5]} 60... Nxd3+
{[%clk 0:00:04.9]} 61. Kf3 {[%clk 0:00:07.9]} 61... Ne5+ {[%clk 0:00:05]} 62.
Kg2 {[%clk 0:00:08.2]} 62... Ng4 {[%clk 0:00:05.7]} 63. Rb7+ {[%clk 0:00:08.7]}
63... Kf6 {[%clk 0:00:05.9]} 64. Nd4 {[%clk 0:00:08.9]} 64... Nxe3+ {[%clk
0:00:05.5]} 65. Kf3 {[%clk 0:00:08.2]} 65... Ng4 {[%clk 0:00:05.6]} 66. Rb6+
{[%clk 0:00:08.5]} 66... Kf7 {[%clk 0:00:05.2]} 67. Rb7+ {[%clk 0:00:08.8]}
67... Kf6 {[%clk 0:00:05.7]} 68. Rb6+ {[%clk 0:00:09.2]} 68... Ke5 {[%clk
0:00:06.1]} 69. Nc6+ {[%clk 0:00:08.9]} 69... Kf5 {[%clk 0:00:05.3]} 70. Rb5+
{[%clk 0:00:08.6]} 70... Kg6 {[%clk 0:00:04.8]} 71. Rg5+ {[%clk 0:00:08.4]}
71... Kh6 {[%clk 0:00:04.6]} 72. Ne7 {[%clk 0:00:07.8]} 72... Rxf2+ {[%clk
0:00:04.6]} 73. Ke4 {[%clk 0:00:08.2]} 73... Rf7 {[%clk 0:00:01.6]} 74. Nf5+
{[%clk 0:00:06.7]} 74... Rxf5 {[%clk 0:00:01.3]} 75. Rxf5 {[%clk 0:00:06.8]}
75... Nf6+ {[%clk 0:00:01.2]} 76. Kf4 {[%clk 0:00:07]} 76... Ng4 {[%clk
0:00:02]} 77. Kf3 {[%clk 0:00:07.3]} 77... g6 {[%clk 0:00:02.5]} 78. Rf4 {[%clk
0:00:07.1]} 78... Ne5+ {[%clk 0:00:03]} 79. Ke4 {[%clk 0:00:06.9]} 79... Ng4
{[%clk 0:00:03.3]} 80. Rf7 {[%clk 0:00:06.7]} 80... Nh2 {[%clk 0:00:02.8]} 81.
Kf4 {[%clk 0:00:06.6]} 81... Ng4 {[%clk 0:00:03.2]} 82. Ke4 {[%clk 0:00:06.8]}
82... Nh2 {[%clk 0:00:03.2]} 83. Ra7 {[%clk 0:00:06.6]} 83... Ng4 {[%clk
0:00:03.5]} 84. Kf4 {[%clk 0:00:07]} 84... Nh2 {[%clk 0:00:03.8]} 85. Ra6 {[%clk
0:00:07.7]} 85... Ng4 {[%clk 0:00:04.3]} 86. Ra5 {[%clk 0:00:08.3]} 86... Nh2
{[%clk 0:00:04.6]} 87. Rg5 {[%clk 0:00:08.6]} 87... Ng4 {[%clk 0:00:05.1]} 88.
Rxg4 {[%clk 0:00:09.1]} 88... hxg4 {[%clk 0:00:06]} 89. Kxg4 {[%clk 0:00:09.8]}
89... Kh7 {[%clk 0:00:06.4]} 90. Kg5 {[%clk 0:00:10.3]} 90... Kg7 {[%clk
0:00:07.1]} 91. h5 {[%clk 0:00:10.7]} 91... gxh5 {[%clk 0:00:07.2]} 92. Kxh5
{[%clk 0:00:11.4]} 92... Kh7 {[%clk 0:00:07.7]} 93. Kg5 {[%clk 0:00:11.7]} 93...
Kg7 {[%clk 0:00:08.1]} 94. g4 {[%clk 0:00:12.3]} 94... Kg8 {[%clk 0:00:08.5]}
95. Kg6 {[%clk 0:00:12.4]} 95... Kh8 {[%clk 0:00:08.3]} 96. Kf7 {[%clk
0:00:12.3]} 96... Kh7 {[%clk 0:00:08.8]} 97. g5 {[%clk 0:00:12.5]} 97... Kh8
{[%clk 0:00:09.4]} 98. Kg6 {[%clk 0:00:12.8]} 98... Kg8 {[%clk 0:00:10]} 99. Kh6
{[%clk 0:00:13.3]} 99... Kh8 {[%clk 0:00:10.5]} 100. g6 {[%clk 0:00:10.3]}
100... Kg8 {[%clk 0:00:10.7]} 101. g7 {[%clk 0:00:10.9]} 101... Kf7 {[%clk
0:00:11.3]} 102. Kh7 {[%clk 0:00:11.6]} 1-0

[Event "Early-Titled-Tuesday-Blitz-December-26-2023"]
[Site "Chess.com"]
[Date "2023.12.26"]
[Round "5"]
[White "Lion_DL"]
[Black "prime-morty"]
[Result "1/2-1/2"]
[WhiteElo "2373"]
[BlackElo "2519"]
[TimeControl "180+1"]
[EndTime "8:59:04 PST"]
[Termination "Game drawn by repetition"]

1. d4 {[%clk 0:03:00.9]} 1... e6 {[%clk 0:02:56.6]} 2. c4 {[%clk 0:02:59.8]}
2... a6 {[%clk 0:02:56.3]} 3. Nf3 {[%clk 0:02:55.4]} 3... b5 {[%clk 0:02:56.5]}
4. cxb5 {[%clk 0:02:51.6]} 4... axb5 {[%clk 0:02:57.4]} 5. e4 {[%clk 0:02:51.8]}
5... Bb7 {[%clk 0:02:56.8]} 6. Qc2 {[%clk 0:02:50.9]} 6... Nc6 {[%clk
0:02:56.2]} 7. Bxb5 {[%clk 0:02:47.8]} 7... Nb4 {[%clk 0:02:54.9]} 8. Qe2 {[%clk
0:02:42.5]} 8... Nf6 {[%clk 0:02:54.9]} 9. Nc3 {[%clk 0:02:41.7]} 9... c5 {[%clk
0:02:52.8]} 10. O-O {[%clk 0:02:38.1]} 10... cxd4 {[%clk 0:02:52.4]} 11. Nxd4
{[%clk 0:02:37.8]} 11... Bc5 {[%clk 0:02:50.9]} 12. Nb3 {[%clk 0:02:35.9]} 12...
Be7 {[%clk 0:02:37]} 13. a3 {[%clk 0:02:28.3]} 13... Nc6 {[%clk 0:02:36.3]} 14.
e5 {[%clk 0:02:27.5]} 14... Ng8 {[%clk 0:02:33]} 15. Rd1 {[%clk 0:02:19.9]}
15... Qc7 {[%clk 0:02:28.6]} 16. Bf4 {[%clk 0:02:14.9]} 16... g5 {[%clk
0:02:27.3]} 17. Bg3 {[%clk 0:02:14.5]} 17... h5 {[%clk 0:02:27.9]} 18. h3 {[%clk
0:02:13.5]} 18... h4 {[%clk 0:02:23.4]} 19. Bh2 {[%clk 0:02:12.8]} 19... Nh6
{[%clk 0:02:23.9]} 20. Rac1 {[%clk 0:02:00.4]} 20... Nf5 {[%clk 0:02:21.7]} 21.
Ne4 {[%clk 0:02:00.1]} 21... Qb6 {[%clk 0:02:15]} 22. a4 {[%clk 0:01:54.9]}
22... Ncd4 {[%clk 0:02:09.4]} 23. Nxd4 {[%clk 0:01:42.2]} 23... Nxd4 {[%clk
0:02:10.3]} 24. Qd3 {[%clk 0:01:40.4]} 24... Nxb5 {[%clk 0:02:10.3]} 25. axb5
{[%clk 0:01:40.8]} 25... Kf8 {[%clk 0:01:52.8]} 26. Nf6 {[%clk 0:01:20.9]} 26...
Bxf6 {[%clk 0:01:52.5]} 27. exf6 {[%clk 0:01:21.8]} 27... Bd5 {[%clk 0:01:46.3]}
28. Bc7 {[%clk 0:01:17.4]} 28... Qb7 {[%clk 0:01:46.2]} 29. Bd6+ {[%clk
0:01:13.5]} 29... Ke8 {[%clk 0:01:43]} 30. Rc7 {[%clk 0:00:56]} 30... Qb6 {[%clk
0:01:37.6]} 31. Bh2 {[%clk 0:00:56.6]} 31... Rb8 {[%clk 0:01:02.2]} 32. Rdc1
{[%clk 0:00:54]} 32... Rd8 {[%clk 0:00:44.5]} 33. Qa3 {[%clk 0:00:45.4]} 33...
d6 {[%clk 0:00:42]} 34. Rc8 {[%clk 0:00:34.4]} 34... Kf8 {[%clk 0:00:28]} 35.
Bxd6+ {[%clk 0:00:30.3]} 35... Kg8 {[%clk 0:00:27.5]} 36. Rxd8+ {[%clk
0:00:26.7]} 36... Qxd8 {[%clk 0:00:28.4]} 37. Be7 {[%clk 0:00:23.5]} 37... Qd7
{[%clk 0:00:28.7]} 38. Qd3 {[%clk 0:00:22.1]} 38... g4 {[%clk 0:00:23.4]} 39. b6
{[%clk 0:00:20.4]} 39... gxh3 {[%clk 0:00:22.2]} 40. Qxh3 {[%clk 0:00:20.3]}
40... Rh6 {[%clk 0:00:21.5]} 41. Qg4+ {[%clk 0:00:19.7]} 41... Rg6 {[%clk
0:00:21.6]} 42. Qh3 {[%clk 0:00:18.9]} 42... Rxg2+ {[%clk 0:00:21.3]} 43. Qxg2+
{[%clk 0:00:19.8]} 43... Bxg2 {[%clk 0:00:21.6]} 44. Kxg2 {[%clk 0:00:20.7]}
44... Qb7+ {[%clk 0:00:21.9]} 45. Kh2 {[%clk 0:00:20.6]} 45... Qxb6 {[%clk
0:00:22.2]} 46. Rc8+ {[%clk 0:00:20.1]} 46... Kh7 {[%clk 0:00:22.7]} 47. Rc3
{[%clk 0:00:20.2]} 47... Qxf2+ {[%clk 0:00:20.8]} 48. Kh3 {[%clk 0:00:19.6]}
48... Kg6 {[%clk 0:00:19.9]} 49. Ra3 {[%clk 0:00:15.9]} 49... e5 {[%clk
0:00:20.2]} 50. Rc3 {[%clk 0:00:15.9]} 50... e4 {[%clk 0:00:20.6]} 51. Bc5
{[%clk 0:00:16.6]} 51... Qf1+ {[%clk 0:00:17.9]} 52. Kxh4 {[%clk 0:00:16.6]}
52... Qh1+ {[%clk 0:00:18]} 53. Kg3 {[%clk 0:00:16.6]} 53... Qe1+ {[%clk
0:00:16.9]} 54. Kf4 {[%clk 0:00:16.2]} 54... Kxf6 {[%clk 0:00:17.3]} 55. Bd4+
{[%clk 0:00:15.3]} 55... Kg6 {[%clk 0:00:17.7]} 56. Rc6+ {[%clk 0:00:15.5]}
56... Kh7 {[%clk 0:00:17.8]} 57. Be3 {[%clk 0:00:14]} 57... Qh4+ {[%clk
0:00:16.7]} 58. Ke5 {[%clk 0:00:13.4]} 58... Qh5+ {[%clk 0:00:15.5]} 59. Kd4
{[%clk 0:00:13.7]} 59... f5 {[%clk 0:00:14.9]} 60. Rc7+ {[%clk 0:00:13.4]} 60...
Kg6 {[%clk 0:00:14.9]} 61. Rc6+ {[%clk 0:00:14.1]} 61... Kf7 {[%clk 0:00:15.4]}
62. Rc7+ {[%clk 0:00:14.6]} 62... Ke6 {[%clk 0:00:15.7]} 63. Rc6+ {[%clk
0:00:14.9]} 63... Kd7 {[%clk 0:00:16.2]} 64. Rc5 {[%clk 0:00:15.5]} 64... Qd1+
{[%clk 0:00:16.3]} 65. Ke5 {[%clk 0:00:15.5]} 65... Qf3 {[%clk 0:00:15]} 66.
Rd5+ {[%clk 0:00:15.4]} 66... Kc6 {[%clk 0:00:14.9]} 67. Rc5+ {[%clk 0:00:15]}
67... Kb7 {[%clk 0:00:14.7]} 68. Rb5+ {[%clk 0:00:15.2]} 68... Ka6 {[%clk
0:00:15.2]} 69. Rb6+ {[%clk 0:00:15.6]} 69... Ka5 {[%clk 0:00:15.8]} 70. Rb3
{[%clk 0:00:16.3]} 70... f4 {[%clk 0:00:14.2]} 71. Ra3+ {[%clk 0:00:14.8]} 71...
Kb5 {[%clk 0:00:14]} 72. Bxf4 {[%clk 0:00:15.7]} 72... Qg2 {[%clk 0:00:12.2]}
73. Re3 {[%clk 0:00:14.9]} 73... Kc4 {[%clk 0:00:12]} 74. Rxe4+ {[%clk
0:00:15.4]} 74... Kb3 {[%clk 0:00:11.9]} 75. Re3+ {[%clk 0:00:15.3]} 75... Kxb2
{[%clk 0:00:11.8]} 76. Kd4 {[%clk 0:00:16.1]} 76... Qg4 {[%clk 0:00:11.5]} 77.
Ke4 {[%clk 0:00:15.8]} 77... Kc2 {[%clk 0:00:10.7]} 78. Rf3 {[%clk 0:00:16.3]}
78... Qe6+ {[%clk 0:00:10.6]} 79. Kd4 {[%clk 0:00:16]} 79... Qd7+ {[%clk
0:00:10.5]} 80. Ke3 {[%clk 0:00:15.5]} 80... Qd3+ {[%clk 0:00:09.8]} 81. Kf2
{[%clk 0:00:15.7]} 81... Qe4 {[%clk 0:00:09.8]} 82. Kg3 {[%clk 0:00:14.9]} 82...
Qg6+ {[%clk 0:00:09.2]} 83. Kf2 {[%clk 0:00:15.3]} 83... Qe4 {[%clk 0:00:08.8]}
84. Kg2 {[%clk 0:00:15.2]} 84... Kd1 {[%clk 0:00:08.3]} 85. Kg3 {[%clk
0:00:15.7]} 85... Qg6+ {[%clk 0:00:08.4]} 86. Kf2 {[%clk 0:00:16.3]} 86... Qc2+
{[%clk 0:00:08.1]} 87. Kg3 {[%clk 0:00:16.4]} 87... Qg6+ {[%clk 0:00:08.5]} 88.
Kf2 {[%clk 0:00:16.8]} 88... Qg4 {[%clk 0:00:08.6]} 89. Rd3+ {[%clk 0:00:16.3]}
89... Kc2 {[%clk 0:00:09.1]} 90. Rf3 {[%clk 0:00:16.2]} 90... Qh4+ {[%clk
0:00:08.7]} 91. Bg3 {[%clk 0:00:16.4]} 91... Qd4+ {[%clk 0:00:09]} 92. Kg2
{[%clk 0:00:16.5]} 92... Kd1 {[%clk 0:00:09]} 93. Rf2 {[%clk 0:00:17]} 93...
Qe4+ {[%clk 0:00:08.7]} 94. Kg1 {[%clk 0:00:17]} 94... Qg4 {[%clk 0:00:08.6]}
95. Kg2 {[%clk 0:00:16.7]} 95... Qe4+ {[%clk 0:00:09]} 96. Kh2 {[%clk
0:00:16.6]} 96... Qg6 {[%clk 0:00:08.1]} 97. Kg2 {[%clk 0:00:16.6]} 97... Qh5
{[%clk 0:00:08.4]} 98. Rf1+ {[%clk 0:00:16.8]} 98... Ke2 {[%clk 0:00:08.6]} 99.
Rf2+ {[%clk 0:00:17.5]} 99... Ke3 {[%clk 0:00:09.1]} 100. Rf1 {[%clk 0:00:17.7]}
100... Qd5+ {[%clk 0:00:09]} 101. Kh2 {[%clk 0:00:17.8]} 101... Ke2 {[%clk
0:00:08.2]} 102. Rf2+ {[%clk 0:00:17.5]} 102... Ke3 {[%clk 0:00:08.7]} 103. Rg2
{[%clk 0:00:17.7]} 103... Qh5+ {[%clk 0:00:08]} 104. Kg1 {[%clk 0:00:18.5]}
104... Kf3 {[%clk 0:00:08]} 105. Bf2 {[%clk 0:00:18.5]} 105... Qd5 {[%clk
0:00:06.6]} 106. Rg3+ {[%clk 0:00:19]} 106... Kf4 {[%clk 0:00:05.6]} 107. Re3
{[%clk 0:00:18.9]} 107... Qd1+ {[%clk 0:00:05.4]} 108. Re1 {[%clk 0:00:19.3]}
108... Qg4+ {[%clk 0:00:05.6]} 109. Kf1 {[%clk 0:00:19.6]} 109... Qh3+ {[%clk
0:00:05.9]} 110. Kg1 {[%clk 0:00:19.9]} 110... Qg4+ {[%clk 0:00:06.1]} 111. Kf1
{[%clk 0:00:20]} 111... Qh3+ {[%clk 0:00:05.2]} 112. Kg1 {[%clk 0:00:20.2]}
112... Qd3 {[%clk 0:00:05.8]} 113. Re3 {[%clk 0:00:19.6]} 113... Qd1+ {[%clk
0:00:05.7]} 114. Kg2 {[%clk 0:00:19.8]} 114... Qg4+ {[%clk 0:00:05.9]} 115. Kf1
{[%clk 0:00:20.2]} 115... Qd1+ {[%clk 0:00:06.1]} 116. Kg2 {[%clk 0:00:20.7]}
116... Qd5+ {[%clk 0:00:06.6]} 117. Kf1 {[%clk 0:00:20.6]} 117... Kg4 {[%clk
0:00:07.2]} 118. Kg1 {[%clk 0:00:20.7]} 118... Qd1+ {[%clk 0:00:07]} 119. Kg2
{[%clk 0:00:20.9]} 119... Qd5+ {[%clk 0:00:07.4]} 120. Kf1 {[%clk 0:00:20.8]}
120... Kf4 {[%clk 0:00:07.3]} 121. Kg1 {[%clk 0:00:20.9]} 121... Qg5+ {[%clk
0:00:07]} 122. Kf1 {[%clk 0:00:21.1]} 122... Qh5 {[%clk 0:00:07.3]} 123. Kg1
{[%clk 0:00:20.7]} 123... Qg4+ {[%clk 0:00:07.3]} 124. Kf1 {[%clk 0:00:20.9]}
124... Qd1+ {[%clk 0:00:07.6]} 125. Kg2 {[%clk 0:00:21.2]} 1/2-1/2

[Event "Early-Titled-Tuesday-Blitz-December-26-2023"]
[Site "Chess.com"]
[Date "2023.12.26"]
[Round "6"]
[White "HajiyevKanan"]
[Black "SHIVACalypso"]
[Result "1-0"]
[WhiteElo "2600"]
[BlackElo "2396"]
[TimeControl "180+1"]
[EndTime "9:00:54 PST"]
[Termination "HajiyevKanan won by resignation"]

1. d4 {[%clk 0:03:00.9]} 1... Nf6 {[%clk 0:02:58.2]} 2. Nf3 {[%clk 0:03:01.8]}
2... g6 {[%clk 0:02:57.7]} 3. c4 {[%clk 0:03:02.3]} 3... Bg7 {[%clk 0:02:58.4]}
4. g3 {[%clk 0:03:01.4]} 4... d6 {[%clk 0:02:59.3]} 5. Bg2 {[%clk 0:03:02]} 5...
O-O {[%clk 0:03:00.2]} 6. O-O {[%clk 0:03:02.7]} 6... Nbd7 {[%clk 0:02:59.9]} 7.
b3 {[%clk 0:03:03.2]} 7... e5 {[%clk 0:02:59.9]} 8. Bb2 {[%clk 0:03:03.9]} 8...
Re8 {[%clk 0:03:00.2]} 9. e3 {[%clk 0:02:59.6]} 9... c6 {[%clk 0:02:59.4]} 10.
dxe5 {[%clk 0:02:59.6]} 10... dxe5 {[%clk 0:02:59.6]} 11. Nc3 {[%clk 0:02:59.1]}
11... Qc7 {[%clk 0:02:59]} 12. Ng5 {[%clk 0:02:55.1]} 12... h6 {[%clk 0:02:56]}
13. Nge4 {[%clk 0:02:54.5]} 13... Nxe4 {[%clk 0:02:56.2]} 14. Nxe4 {[%clk
0:02:54.9]} 14... b6 {[%clk 0:02:49.2]} 15. Qd6 {[%clk 0:02:53.9]} 15... Qxd6
{[%clk 0:02:47.1]} 16. Nxd6 {[%clk 0:02:54.5]} 16... Re6 {[%clk 0:02:47.6]} 17.
Bxc6 {[%clk 0:02:48.4]} 17... Rb8 {[%clk 0:02:29.1]} 18. Nxc8 {[%clk 0:02:48.4]}
18... Rxc6 {[%clk 0:02:29]} 19. Ne7+ {[%clk 0:02:48.5]} 1-0

[Event "Early-Titled-Tuesday-Blitz-December-26-2023"]
[Site "Chess.com"]
[Date "2023.12.26"]
[Round "6"]
[White "DvaHrasta"]
[Black "Vaibhavraut99"]
[Result "1-0"]
[WhiteElo "2485"]
[BlackElo "2645"]
[TimeControl "180+1"]
[EndTime "9:01:25 PST"]
[Termination "DvaHrasta won by resignation"]

1. c4 {[%clk 0:03:00.9]} 1... c6 {[%clk 0:02:58.5]} 2. e4 {[%clk 0:03:00.3]}
2... d5 {[%clk 0:02:57.6]} 3. exd5 {[%clk 0:03:01.2]} 3... cxd5 {[%clk
0:02:58.5]} 4. cxd5 {[%clk 0:03:01.8]} 4... Nf6 {[%clk 0:02:59]} 5. Qa4+ {[%clk
0:03:01.7]} 5... Nbd7 {[%clk 0:02:57.1]} 6. Bc4 {[%clk 0:03:01.4]} 6... g6
{[%clk 0:02:54.6]} 7. d3 {[%clk 0:03:01.5]} 7... Bg7 {[%clk 0:02:55]} 8. Nc3
{[%clk 0:03:01.7]} 8... O-O {[%clk 0:02:55.4]} 9. Nf3 {[%clk 0:03:01.9]} 9...
Nb6 {[%clk 0:02:55.9]} 10. Qb3 {[%clk 0:03:01.9]} 10... Bg4 {[%clk 0:02:54.6]}
11. Ne5 {[%clk 0:03:01]} 11... Bf5 {[%clk 0:02:53.4]} 12. O-O {[%clk 0:02:59.1]}
12... Nfxd5 {[%clk 0:02:53.8]} 13. Nxf7 {[%clk 0:02:58.4]} 13... Rxf7 {[%clk
0:02:46.2]} 14. Nxd5 {[%clk 0:02:55.8]} 14... Nxd5 {[%clk 0:02:45.9]} 15. Bxd5
{[%clk 0:02:54.6]} 15... e6 {[%clk 0:02:46.5]} 16. Bxe6 {[%clk 0:02:52.8]} 16...
Bxe6 {[%clk 0:02:47.4]} 17. Qxe6 {[%clk 0:02:52.7]} 17... Qxd3 {[%clk
0:02:48.1]} 18. Be3 {[%clk 0:02:49.6]} 18... Bxb2 {[%clk 0:02:41]} 19. Rab1
{[%clk 0:02:47.5]} 19... Qc2 {[%clk 0:02:39.2]} 20. h4 {[%clk 0:02:34.8]} 20...
Rc8 {[%clk 0:02:29.5]} 21. Rxb2 {[%clk 0:02:26.8]} 1-0

[Event "Early-Titled-Tuesday-Blitz-December-26-2023"]
[Site "Chess.com"]
[Date "2023.12.26"]
[Round "6"]
[White "NovakRatko"]
[Black "Kaissa10"]
[Result "1-0"]
[WhiteElo "2430"]
[BlackElo "2075"]
[TimeControl "180+1"]
[EndTime "9:01:56 PST"]
[Termination "NovakRatko won by resignation"]

1. d4 {[%clk 0:03:00.9]} 1... d5 {[%clk 0:02:58.7]} 2. c4 {[%clk 0:02:59.5]}
2... c6 {[%clk 0:02:59]} 3. cxd5 {[%clk 0:02:58.5]} 3... cxd5 {[%clk 0:02:59]}
4. Nc3 {[%clk 0:02:59.4]} 4... a6 {[%clk 0:02:59.2]} 5. f3 {[%clk 0:02:58.9]}
5... Nc6 {[%clk 0:02:56.3]} 6. e4 {[%clk 0:02:57.8]} 6... dxe4 {[%clk
0:02:56.6]} 7. d5 {[%clk 0:02:57]} 7... Ne5 {[%clk 0:02:57.2]} 8. fxe4 {[%clk
0:02:56.3]} 8... Nf6 {[%clk 0:02:57.7]} 9. Qd4 {[%clk 0:02:54.6]} 9... Ng6
{[%clk 0:02:38]} 10. e5 {[%clk 0:02:53.2]} 10... Ng4 {[%clk 0:01:40.1]} 11. e6
{[%clk 0:02:48.3]} 11... Nf6 {[%clk 0:01:26.6]} 12. Qa4+ {[%clk 0:02:44.6]} 1-0

[Event "Early-Titled-Tuesday-Blitz-December-26-2023"]
[Site "Chess.com"]
[Date "2023.12.26"]
[Round "6"]
[White "Msb2"]
[Black "Lady_Nika"]
[Result "1-0"]
[WhiteElo "3002"]
[BlackElo "2605"]
[TimeControl "180+1"]
[EndTime "9:02:18 PST"]
[Termination "Msb2 won by resignation"]

1. d4 {[%clk 0:03:00.9]} 1... d5 {[%clk 0:02:59.6]} 2. c4 {[%clk 0:03:01]} 2...
e6 {[%clk 0:02:59.9]} 3. Nc3 {[%clk 0:03:01.5]} 3... f5 {[%clk 0:03:00.2]} 4.
Bf4 {[%clk 0:03:00.5]} 4... Nf6 {[%clk 0:03:00.1]} 5. Nf3 {[%clk 0:03:01.1]}
5... c6 {[%clk 0:03:00.3]} 6. e3 {[%clk 0:03:01.7]} 6... Bd6 {[%clk 0:02:59.3]}
7. Ne5 {[%clk 0:03:02.2]} 7... O-O {[%clk 0:02:59.5]} 8. Be2 {[%clk 0:03:02.9]}
8... Qe7 {[%clk 0:02:59.8]} 9. c5 {[%clk 0:03:03.2]} 9... Bc7 {[%clk 0:03:00]}
10. O-O {[%clk 0:03:03.1]} 10... Ne8 {[%clk 0:02:58]} 11. b4 {[%clk 0:02:58.3]}
11... a6 {[%clk 0:02:57.9]} 12. a4 {[%clk 0:02:58.3]} 12... Nd7 {[%clk
0:02:58.2]} 13. Nf3 {[%clk 0:02:48.5]} 13... e5 {[%clk 0:02:57.2]} 14. dxe5
{[%clk 0:02:47.4]} 14... Nxe5 {[%clk 0:02:57.5]} 15. Bxe5 {[%clk 0:02:41]} 15...
Bxe5 {[%clk 0:02:57.4]} 16. Nxd5 {[%clk 0:02:41.9]} 16... Bxh2+ {[%clk
0:02:29.5]} 17. Kxh2 {[%clk 0:02:38.4]} 17... cxd5 {[%clk 0:02:27.8]} 18. Qxd5+
{[%clk 0:02:39.3]} 18... Be6 {[%clk 0:02:27.3]} 19. Qe5 {[%clk 0:02:36.8]} 19...
Nf6 {[%clk 0:02:26.9]} 20. Nd4 {[%clk 0:02:32.3]} 20... Rae8 {[%clk 0:02:02.6]}
21. Qxe6+ {[%clk 0:02:31.7]} 21... Qxe6 {[%clk 0:02:02.3]} 22. Nxe6 {[%clk
0:02:32.6]} 22... Rxe6 {[%clk 0:02:00.1]} 23. Bc4 {[%clk 0:02:33.3]} 23... Ng4+
{[%clk 0:01:59.4]} 24. Kg1 {[%clk 0:02:32.7]} 24... Kf7 {[%clk 0:01:59.7]} 25.
Rfd1 {[%clk 0:02:32.2]} 25... Ne5 {[%clk 0:01:57.4]} 26. Bxe6+ {[%clk
0:02:31.6]} 26... Kxe6 {[%clk 0:01:58.3]} 27. Rd6+ {[%clk 0:02:32.1]} 27... Ke7
{[%clk 0:01:58.6]} 28. Rad1 {[%clk 0:02:33]} 28... f4 {[%clk 0:01:58.7]} 29.
exf4 {[%clk 0:02:28.2]} 29... Rxf4 {[%clk 0:01:58.8]} 30. Re1 {[%clk 0:02:28.7]}
30... Rf5 {[%clk 0:01:58.7]} 31. f4 {[%clk 0:02:28.9]} 1-0